Cogmind - Beta 12 @@@ ROGUE MODE // 2023.06.20 @ 21:29:45 Player: Michael Result: Self-destructed Performance ------------- Evolutions (3) 1500 Regions Visited (9) 1800 Robots Destroyed (194) 970 Value Destroyed (5356) 5356 Prototype IDs (7) 140 Alien Tech Used (0) 0 Bonus (964) 964 TOTAL SCORE: 10730 Bonus ------- High Alert Combat Kills 757 Follower Combat Kills 7 Entered Garrisons 200 Cogmind --------- Core Integrity 3/700 Matter 215/300 Energy 99/100 System Corruption 3% Temperature Cool (9) Movement Core (50) Location -7/Garrison Parts ------- > --- POWER (1) -------- (None) > --- PROPULSION (2) --- (None) > --- UTILITY (8) ------ Improved Signal Interpreter Advanced Terrain Scan Processor Advanced Targeting Computer Hacking Suite > --- WEAPON (2) ------- (None) > --- INVENTORY (5) ---- Medium Storage Unit High-capacity Storage Unit Advanced Assault Cannon Remote Datajack Axe Peak State ------------ > --- POWER ------------ Micro Nuclear Core > --- PROPULSION ------- Advanced Treads Wheel > --- UTILITY ---------- Improved Heat Sink High-capacity Storage Unit Improved Signal Interpreter Improved Terrain Scanner Advanced Terrain Scan Processor Advanced Targeting Computer Improved Light Armor Plating Hacking Suite > --- WEAPON ----------- Advanced Assault Cannon Axe > --- INVENTORY -------- Light Nuclear Core Light Nuclear Core Advanced Treads Advanced Treads Advanced Treads Wheel Improved Heat Sink Cooling System Medium Storage Unit High-capacity Storage Unit High-capacity Storage Unit High-capacity Matter Pod Advanced Targeting Computer Recoil Stabilizer Kinecellerator Core Shielding Heavy Assault Rifle Rocket Launcher Rocket Launcher Remote Datajack [Rating: 42] Favorites ----------- Power Cooled Ion Engine Engine Cooled Ion Engine Power Core Light Nuclear Core Propulsion Wheel Treads Improved Treads Leg Aluminum Leg Wheel Wheel Utility High-capacity Storage Unit Device Improved Terrain Scanner Storage High-capacity Storage Unit Processor Improved Targeting Computer Hackware Hacking Suite Protection Core Shielding Weapon Heavy Assault Rifle Energy Gun EM Pulse Gun Energy Cannon Advanced Beam Cannon Ballistic Gun Heavy Assault Rifle Ballistic Cannon Advanced Assault Cannon Launcher Rocket Launcher Slashing Weapon Axe Build | -11 -10 -10 -9 -9 -9 -8 -8 -7 -7 ------- Run | Jun Mat Min Mat Min Exi Min Mat Fac Gar Slots Evolved 6 | . . . 2 . . . 2 2 . Power . | . . . . . . . . . . Propulsion . | . . . . . . . . . . Utility 6 | . . . 2 . . . 2 2 . Weapon . | . . . . . . . . . . Parts Attached 221 | 5 14 12 52 5 . 3 63 57 10 Power 19 | . 1 1 7 1 . . 2 7 . Engine 12 | . 1 1 7 1 . . 2 . . Core 7 | . . . . . . . . 7 . Reactor . | . . . . . . . . . . Propulsion 53 | 2 4 4 12 1 . . 16 12 2 Treads 24 | . 2 1 5 . . . 7 8 1 Leg 2 | 2 . . . . . . . . . Wheel 27 | . 2 3 7 1 . . 9 4 1 Hover . | . . . . . . . . . . Flight . | . . . . . . . . . . Utility 50 | 1 4 . 10 . . 2 13 16 4 Device 17 | . 1 . 3 . . . 5 7 1 Storage 4 | 1 1 . . . . . 1 . 1 Processor 11 | . 1 . 4 . . . 3 2 1 Hackware 1 | . . . . . . . 1 . . Protection 17 | . 1 . 3 . . 2 3 7 1 Artifact . | . . . . . . . . . . Weapon 99 | 2 5 7 23 3 . 1 32 22 4 Energy Gun 1 | 1 . . . . . . . . . Energy Cannon 18 | . . . 3 . . 1 12 1 1 Ballistic Gun 43 | 1 5 4 15 2 . . 6 10 . Ballistic Cannon 3 | . . . 1 . . . . 2 . Launcher 23 | . . 3 4 1 . . 12 1 2 Special Weapon . | . . . . . . . . . . Impact Weapon . | . . . . . . . . . . Slashing Weapon 11 | . . . . . . . 2 8 1 Piercing Weapon . | . . . . . . . . . . Special Melee Weapon . | . . . . . . . . . . Unidentified Prototypes 3 | . . . 3 . . . . . . Parts Lost 56 | . 1 1 10 1 . 2 9 20 12 Power 9 | . . . 2 1 . . 1 4 1 Propulsion 21 | . 1 1 2 . . . 7 6 4 Utility 14 | . . . 2 . . 1 1 6 4 Weapon 12 | . . . 4 . . 1 . 4 3 Highest Loss Streak 12 | . 1 1 5 1 . 2 3 5 12 To Critical Strikes . | . . . . . . . . . . Average Slot Usage (%) 94 | . 85 99 98 99 100 98 97 92 78 Engine 6 | . 1 14 10 10 11 11 8 . . Core 2 | . . . . . . . . 6 4 Treads 11 | . 10 14 11 11 11 11 11 9 10 Wheel 7 | . 10 13 9 11 11 11 6 2 . Device 6 | . 1 . 4 . . . 8 10 11 Storage 9 | . 14 14 11 11 11 11 9 7 5 Processor 16 | . 10 . 13 22 22 15 17 24 21 Hackware 3 | . . . . . . . 5 7 7 Protection 10 | . 1 14 15 11 11 15 10 8 3 Energy Cannon 2 | . . . 3 . . 3 6 . . Ballistic Gun 13 | . 27 27 16 21 22 18 10 5 4 Slashing Weapon 1 | . . . . . . . . 4 . Naked Turns . | . . . . . . . . . . Heaviest Build 65 | 8 49 49 64 56 54 63 65 63 57 Greatest Support 53 | 20 20 40 46 10 10 10 46 53 53 Greatest Overweight (x) 6 | . 4 4 6 5 5 6 6 6 1 Average Overweight (x) 3 | . 2 3 5 5 5 5 4 3 . Largest Inventory Capacity 20 | 8 20 20 20 20 20 20 20 20 20 Average Capacity 19 | 6 16 20 20 20 20 20 20 20 15 Most Carried 20 | 3 18 20 20 20 19 19 20 20 15 Average Carried 17 | 1 10 19 18 19 19 17 19 18 10 Final Capacity 20 | 8 20 20 20 20 20 20 20 20 5 Final Carried 20 | 3 18 20 20 19 19 16 18 15 5 Class Distribution -------------------- 65% | Mutant 34% | Scavenger-Mutant Dominant Class ---------------- Mutant | -10/Materials Mutant | -10/Mines Mutant | -9/Materials Mutant | -9/Mines Mutant | -9/Exiles Mutant | -8/Mines Mutant | -8/Materials Scavenger-Mutant | -7/Factory Mutant | -7/Garrison Resources | -11 -10 -10 -9 -9 -9 -8 -8 -7 -7 ----------- Run | Jun Mat Min Mat Min Exi Min Mat Fac Gar Matter Collected 5026 | 225 463 533 1359 82 50 59 1027 984 244 Remotely 153 | . . . 153 . . . . . . Salvage Created 6825 | . 514 319 2000 89 . 59 2099 1638 107 Parts 390 | . 34 18 129 7 . 3 109 81 9 Haulers Intercepted 10 | . 2 . 5 . . . 2 1 . Recyclers Shooed 3 | . 1 . . 1 . . . 1 . Parts Field Recycled . | . . . . . . . . . . Retrieved Matter . | . . . . . . . . . . Parts Self-Destructed . | . . . . . . . . . . Prevented . | . . . . . . . . . . Kills | -11 -10 -10 -9 -9 -9 -8 -8 -7 -7 ------- Run | Jun Mat Min Mat Min Exi Min Mat Fac Gar Combat Hostiles Destroyed 131 | . 8 9 36 2 . 1 42 25 8 Melee 8 | . . . . . . . . 7 1 Guns 62 | . 8 6 24 . . 1 10 13 . Cannons 21 | . . . 7 . . . 13 1 . AOE 39 | . . 3 5 2 . . 18 4 7 Classes Destroyed 17 | . 7 1 5 . . 1 2 1 . Worker 26 | . 3 3 6 . . . 10 4 . Builder 3 | . . . . . . . 1 2 . Tunneler 5 | . 1 1 . 1 . . 2 . . Hauler 10 | . 2 . 5 . . . 2 1 . Recycler 15 | . 1 2 2 1 . . 4 5 . Operator 2 | . . . 1 . . . 1 . . Watcher 7 | . 1 . 4 . . . 1 1 . Swarmer 29 | . 3 1 4 2 . . 4 8 7 Grunt 59 | . 5 4 19 . . . 22 8 1 Brawler 3 | . . . 1 . . . 2 . . Duelist 2 | . . . 1 . . . 1 . . Protector 1 | . . . 1 . . . . . . Sentry 24 | . . . 10 . . . 9 5 . Specialist 2 | . . . . . . . 2 . . Hunter 3 | . . . . . . 1 2 . . Programmer 4 | . . . . . . . . 4 . Assembled 4 | . . 4 . . . . . . . Best Kill Streak 8 | . 3 4 7 2 . 1 8 5 7 Combat Bots Only 7 | . 3 4 4 2 . 1 6 5 7 Max Kills in Single Turn 4 | . 1 3 3 1 . 1 3 3 4 Gunslinging . | . . . . . . . . . . Exploded 4 | . . 1 2 1 . . 2 3 4 Melee 1 | . . . . . . . . 1 1 Uniques/NPCs Destroyed . | . . . . . . . . . . Combat | -11 -10 -10 -9 -9 -9 -8 -8 -7 -7 -------- Run | Jun Mat Min Mat Min Exi Min Mat Fac Gar Damage Taken 9262 | . 452 434 1966 62 . 321 1988 2980 1059 Core 1443 | . 72 64 240 8 . . 362 471 226 Absorbed by Shields . | . . . . . . . . . . Redirected to Shielding 274 | . . 14 37 1 . . 197 22 3 Regen/Repaired (Parts) 629 | . 72 . 183 . . . 267 107 . Core Remaining (%) 54 | 100 . 45 . . . 38 34 . . Volleys Fired 485 | . 66 38 159 8 . 12 111 84 7 Largest 2 | . 2 2 2 2 . 2 2 2 2 Hottest 103 | . 60 50 91 56 . 88 101 103 56 Shots Fired 936 | . 132 75 316 16 . 24 217 145 11 Gun 732 | . 132 66 269 14 . 19 117 111 4 Cannon 152 | . . . 39 . . 5 78 30 . Launcher 52 | . . 9 8 2 . . 22 4 7 Special . | . . . . . . . . . . Kinetic 770 | . 131 66 287 14 . 19 117 132 4 Thermal 113 | . . . 21 . . 5 78 9 . Explosive 52 | . . 9 8 2 . . 22 4 7 Electromagnetic 1 | . 1 . . . . . . . . Robot Hit Streak 28 | . 15 10 20 10 . 7 28 28 6 Robot Miss Streak 6 | . 3 4 6 5 . 2 3 2 3 Penetration Max . | . . . . . . . . . . Secondary Targets 1 | . . . . . . . . 1 . Max Gunslinging Chain 1 | . . . . . . . . 1 . Shots Hit Robots 669 | . 90 46 219 7 . 19 139 142 7 Core Hits 329 | . 27 33 86 5 . 4 105 54 15 Critical Kills 5 | . . 1 1 . . . 1 2 . Critical Parts Destroyed 4 | . 3 . 1 . . . . . . Critical Strikes 12 | . 4 1 2 . . . 1 4 . Meltdown 1 | . . . . . . . 1 . . Destroy 8 | . 3 1 2 . . . . 2 . Corrupt 1 | . 1 . . . . . . . . Sever 2 | . . . . . . . . 2 . Melee Attacks 70 | . . . . . . . 3 65 2 Impact . | . . . . . . . . . . Slashing 70 | . . . . . . . 3 65 2 Piercing . | . . . . . . . . . . Sneak Attacks 9 | . . . . . . . . 9 . Combat Hostiles . | . . . . . . . . . . Follow-up Attacks . | . . . . . . . . . . Damage Inflicted 15648 | . 1033 976 3684 208 . 229 5046 3650 822 Guns 6705 | . 1033 428 2577 108 . 148 985 1394 32 Cannons 2232 | . . . 543 . . 81 1228 380 . Explosions 5088 | . . 548 564 100 . . 2833 294 749 Melee 1623 | . . . . . . . . 1582 41 Ramming . | . . . . . . . . . . Kinetic 7161 | . 1020 428 2849 108 . 148 985 1591 32 Thermal 1983 | . . . 271 . . 81 1448 183 . Explosive 4868 | . . 548 564 100 . . 2613 294 749 Electromagnetic 13 | . 13 . . . . . . . . Impact . | . . . . . . . . . . Slashing 1623 | . . . . . . . . 1582 41 Piercing . | . . . . . . . . . . Highest Corruption 3 | . . . . . . . . 3 3 Average Corruption 1 | . . . . . . . . 1 3 Corruption Purged . | . . . . . . . . . . Corruption Blocked . | . . . . . . . . . . Effects 14 | . . . . . . . . 13 1 Message Errors 3 | . . . . . . . . 3 . Matter Fused 5 | . . . . . . . . 5 . Heat Flow Errors 1 | . . . . . . . . 1 . Energy Discharges 3 | . . . . . . . . 3 . Data Loss (minor) 2 | . . . . . . . . 1 1 Overload Shots . | . . . . . . . . . . Overflow Damage 451 | . . 4 25 10 . . 161 231 20 Projectiles 26 | . . . 3 . . . 4 19 . Explosions 213 | . . 4 22 10 . . 157 . 20 Melee 212 | . . . . . . . . 212 . Knockbacks 7 | . . . 4 . . . . 3 . Impact . | . . . . . . . . . . Kinetic 7 | . . . 4 . . . . 3 . Secondary . | . . . . . . . . . . Self-Inflicted Damage 403 | . . . 78 . . . 178 30 117 Shots 14 | . . . 3 . . . 6 1 4 Rammed . | . . . . . . . . . . Targets Rammed . | . . . . . . . . . . Kicked . | . . . . . . . . . . Crushed . | . . . . . . . . . . Highest Temperature 191 | . 22 34 90 . . 100 171 191 . Average Temperature 30 | . 4 13 25 . . 47 30 58 . Received Heat Transfer 2919 | . 255 108 714 . . . 765 762 315 Siege Activations . | . . . . . . . . . . Robots Corrupted . | . . . . . . . . . . Combat Hostiles . | . . . . . . . . . . Parts Fried 1 | . 1 . . . . . . . . Impact Corruptions . | . . . . . . . . . . Robots Melted 1 | . . . . . . . 1 . . Combat Hostiles 1 | . . . . . . . 1 . . Parts Melted 10 | . . . . . . 1 8 1 . Heat Transferred 3347 | . . . 481 . . 148 2370 348 . Parts Sabotaged . | . . . . . . . . . . Parts Stolen . | . . . . . . . . . . Parts Stripped . | . . . . . . . . . . Power Chain Reactions . | . . . . . . . . . . Missiles Intercepted . | . . . . . . . . . . Alert | -11 -10 -10 -9 -9 -9 -8 -8 -7 -7 ------- Run | Jun Mat Min Mat Min Exi Min Mat Fac Gar Peak Influence 1042 | . 142 214 722 385 . 30 1042 607 548 Initial 473 | . . 18 9 281 . . 11 473 403 Average 295 | . 64 73 291 333 . 3 293 443 451 Maximum Alert Level 3 | . . 1 3 1 . . 3 2 2 Low Security (%) 40 | 100 100 91 40 . . 100 52 . . Level 1 23 | . . 8 25 100 . . 21 30 3 Level 2 32 | . . . 31 . . . 13 69 96 Level 3 3 | . . . 1 . . . 12 . . Level 4 . | . . . . . . . . . . Level 5 . | . . . . . . . . . . High Security . | . . . . . . . . . . Max Security . | . . . . . . . . . . Squads Dispatched 21 | . 1 . 4 . . . 9 7 . Investigation 1 | . . . . . . . 1 . . Extermination 4 | . . . . . . . . 4 . Reinforcement 11 | . 1 . 3 . . . 5 2 . Assault 1 | . . . 1 . . . . . . Garrison 4 | . . . . . . . 3 1 . Intercept . | . . . . . . . . . . Searches Triggered . | . . . . . . . . . . Construction Impeded 3 | . . . . . . . 2 1 . Haulers Reinforced . | . . . . . . . . . . Active Scanning Responses . | . . . . . . . . . . Cargo Convoy Interrupts . | . . . . . . . . . . Stealth | -11 -10 -10 -9 -9 -9 -8 -8 -7 -7 --------- Run | Jun Mat Min Mat Min Exi Min Mat Fac Gar Distress Signals 14 | . . 2 5 . . 1 6 . . Communications Jammed . | . . . . . . . . . . Distress Signals . | . . . . . . . . . . Times Spotted 203 | . 17 14 60 3 . 1 55 37 16 Peak Tracking Total 8 | . 4 5 5 3 . 1 6 4 8 Tactical Retreats 7 | . . 3 2 . . . 1 1 . Traps | -11 -10 -10 -9 -9 -9 -8 -8 -7 -7 ------- Run | Jun Mat Min Mat Min Exi Min Mat Fac Gar Traps Triggered 2 | . . . . . . . 1 1 . Indirectly . | . . . . . . . . . . Trap Hack Attempts . | . . . . . . . . . . Triggered . | . . . . . . . . . . Disarmed . | . . . . . . . . . . Reprogrammed . | . . . . . . . . . . Reused . | . . . . . . . . . . Traps Extracted . | . . . . . . . . . . Installed . | . . . . . . . . . . Triggered . | . . . . . . . . . . Machines | -11 -10 -10 -9 -9 -9 -8 -8 -7 -7 ---------- Run | Jun Mat Min Mat Min Exi Min Mat Fac Gar Machines Disabled 14 | . . . 3 1 . . 7 2 1 Max in Single Turn 3 | . . . 1 1 . . 3 1 1 Machines Repaired . | . . . . . . . . . . Machines Sabotaged . | . . . . . . . . . . Overloaded Fab Kills . | . . . . . . . . . . Hacking | -11 -10 -10 -9 -9 -9 -8 -8 -7 -7 --------- Run | Jun Mat Min Mat Min Exi Min Mat Fac Gar Machines Accessed 36 | . 8 . 8 . 1 . 11 8 . Terminals 19 | . 5 . 5 . . . 6 3 . Fabricators 1 | . . . . . . . . 1 . Repair Stations 7 | . 1 . 2 . . . 2 2 . Recycling Units 4 | . 2 . . . . . 1 1 . Scanalyzers 3 | . . . 1 . . . 2 . . Garrison Access 1 | . . . . . . . . 1 . Total Hacks 102 | . 17 . 25 . 1 . 37 22 . Successful 59 | . 8 . 15 . 1 . 21 14 . Failed 43 | . 9 . 10 . . . 16 8 . Catastrophic 4 | . 2 . 2 . . . . . . Database Lockouts . | . . . . . . . . . . Manual 16 | . 1 . 4 . . . 8 3 . Terminals 53 | . 10 . 16 . . . 18 9 . Fabricators 2 | . . . . . . . . 2 . Repair Stations 25 | . 3 . 5 . . . 9 8 . Recycling Units 6 | . 4 . . . . . 1 1 . Scanalyzers 13 | . . . 4 . . . 9 . . Garrison Access 2 | . . . . . . . . 2 . Terminal Hacks 21 | . 3 . 6 . 1 . 6 5 . Record 1 | . . . . . 1 . . . . Prototype ID Bank 2 | . . . 1 . . . 1 . . Branch Access Points 2 | . . . . . . . 1 1 . Emergency Access Points 3 | . 2 . . . . . . 1 . Locate Traps 5 | . . . 3 . . . . 2 . Patrol Status 1 | . . . . . . . 1 . . Hauler Manifests 2 | . . . 1 . . . 1 . . Registered Components 1 | . . . . . . . 1 . . Zone Layout 4 | . 1 . 1 . . . 1 1 . Fabricator Hacks 2 | . . . . . . . . 2 . Network Status 1 | . . . . . . . . 1 . Load Schematic 1 | . . . . . . . . 1 . Repair Station Hacks 16 | . 2 . 4 . . . 6 4 . Scan Component 9 | . 1 . 2 . . . 3 3 . Repair 7 | . 1 . 2 . . . 3 1 . Recycling Unit Hacks 5 | . 3 . . . . . 1 1 . Retrieve Components 5 | . 3 . . . . . 1 1 . Scanalyzer 11 | . . . 4 . . . 7 . . Insert Component 6 | . . . 2 . . . 4 . . Analyze 5 | . . . 2 . . . 3 . . Garrison Access Hacks 1 | . . . . . . . . 1 . Unlock Access 1 | . . . . . . . . 1 . Unauthorized Hacks 3 | . . . 1 . . . 1 1 . Terminals 3 | . . . 1 . . . 1 1 . Botnet 3 | . . . 1 . . . 1 1 . Fabricators . | . . . . . . . . . . Repair Stations . | . . . . . . . . . . Recycling Units . | . . . . . . . . . . Scanalyzers . | . . . . . . . . . . Garrison Access . | . . . . . . . . . . Data Cores Recovered 2 | . . . 1 . . . 1 . . Used . | . . . . . . . . . . Hacking Detections 32 | . 8 . 7 . . . 9 8 . Full Trace Events 1 | . 1 . . . . . . . . Feedback Events . | . . . . . . . . . . Feedback Blocked . | . . . . . . . . . . Robot Schematics Acquired . | . . . . . . . . . . Robots Built . | . . . . . . . . . . Authchips . | . . . . . . . . . . Time . | . . . . . . . . . . Total Robot Build Rating . | . . . . . . . . . . Part Schematics Acquired 5 | . . . 2 . . . 3 . . Parts Built . | . . . . . . . . . . Authchips . | . . . . . . . . . . Time . | . . . . . . . . . . Total Part Build Rating . | . . . . . . . . . . Parts Repaired 7 | . 1 . 2 . . . 3 1 . Time 199 | . 26 . 58 . . . 99 16 . Parts Recycled . | . . . . . . . . . . Recycled Matter . | . . . . . . . . . . Retrieved Matter . | . . . . . . . . . . Retrieved Components 28 | . 9 . . . . . 9 10 . Parts Scanalyzed 6 | . . . 2 . . . 4 . . Part Schematics Acquired 5 | . . . 2 . . . 3 . . Parts Damaged . | . . . . . . . . . . Bothacking | -11 -10 -10 -9 -9 -9 -8 -8 -7 -7 ------------ Run | Jun Mat Min Mat Min Exi Min Mat Fac Gar Used RIF Installer . | . . . . . . . . . . Robots Hacked . | . . . . . . . . . . Non-combat . | . . . . . . . . . . Combat . | . . . . . . . . . . Robot Hacks Applied . | . . . . . . . . . . Relay Couplers Released . | . . . . . . . . . . Fabnet Peak Effective % . | . . . . . . . . . . Robots Rewired . | . . . . . . . . . . Allies Hacked . | . . . . . . . . . . Hacks Repelled . | . . . . . . . . . . Allies | -11 -10 -10 -9 -9 -9 -8 -8 -7 -7 -------- Run | Jun Mat Min Mat Min Exi Min Mat Fac Gar Total Allies 3 | . . 1 . 2 . . . . . Largest Group 2 | . . 1 . 2 2 . . . . Highest-Rated Group 41 | . . 26 . 41 41 . . . . Highest-Rated Ally 31 | . . 26 . 31 31 . . . . Total Orders . | . . . . . . . . . . Ally Attacks 6 | . . . . 6 . . . . . Total Damage 22 | . . . . 22 . . . . . Kills 1 | . . . . 1 . . . . . Allies Corrupted . | . . . . . . . . . . Allies Melted . | . . . . . . . . . . Intel | -11 -10 -10 -9 -9 -9 -8 -8 -7 -7 ------- Run | Jun Mat Min Mat Min Exi Min Mat Fac Gar Robot Analysis Total . | . . . . . . . . . . Derelict Logs Recovered 1 | . . . . 1 . . . . . Drone Launches . | . . . . . . . . . . Drone Recoveries . | . . . . . . . . . . Exploration | -11 -10 -10 -9 -9 -9 -8 -8 -7 -7 ------------- Run | Jun Mat Min Mat Min Exi Min Mat Fac Gar Turns Passed 9132 | 56 1057 563 1874 297 225 73 2238 2580 169 Spaces Moved 4118 | 40 638 301 754 172 146 22 944 990 111 Core 67 | 3 . . . . . . . . 64 Treads 732 | . . 3 32 . . . 168 491 38 Legs 182 | 37 145 . . . . . . . . Wheels 3137 | . 493 298 722 172 146 22 776 499 9 Hover . | . . . . . . . . . . Flight . | . . . . . . . . . . Fastest Speed 50 | 50 80 140 140 155 155 155 140 125 50 Average Speed 166 | 114 126 140 163 155 155 157 177 201 112 Slowest Speed 320 | 120 140 240 240 155 155 170 320 305 225 Overloaded Moves . | . . . . . . . . . . Propulsion Burnouts . | . . . . . . . . . . Robots Hopped . | . . . . . . . . . . Cave-ins Triggered . | . . . . . . . . . . Exploration Rate (%) 48 | 3 90 55 90 49 48 14 78 38 18 Regions Visited 9 Branch Regions 4 Pre-discovered Areas 2 | . . 1 . 1 . . . . . Known Exits Taken 6 | . . . 1 1 1 1 1 1 . Unknown Exits Taken 3 | 1 1 1 . . . . . . . Scrap Searched 2 | . . 1 . 1 . . . . . Spaces Dug 44 | . . . 4 . . . 12 28 . Terrain Destroyed 379 | . . 62 64 13 . . 166 48 26 Melee 25 | . . . . . . . 3 22 . Projectile 8 | . . . 1 . . . . 7 . AOE 346 | . . 62 63 13 . . 163 19 26 Terrain Rammed . | . . . . . . . . . . Walls Destroyed . | . . . . . . . . . . Machines Disabled . | . . . . . . . . . . Actions | -11 -10 -10 -9 -9 -9 -8 -8 -7 -7 --------- Run | Jun Mat Min Mat Min Exi Min Mat Fac Gar Total 5352 | 47 764 370 1087 186 145 37 1268 1305 143 Wait 287 | . 20 11 77 . . . 111 65 3 Move 4110 | 39 637 300 753 171 145 21 943 990 111 Hop . | . . . . . . . . . . Pick Up 81 | 3 18 3 18 . . . 17 21 1 Fast Attach 41 | 5 5 1 10 . . . 8 12 . Attach 58 | . 3 1 13 1 . 3 11 19 7 Detach 26 | . 1 1 8 . . 1 6 7 2 Swap 122 | . 6 10 29 4 . . 44 26 3 Drop 72 | . 8 5 20 2 . . 14 16 7 Fire 485 | . 66 38 159 8 . 12 111 84 7 Melee 70 | . . . . . . . 3 65 2 Ram . | . . . . . . . . . . Kick . | . . . . . . . . . . Crush . | . . . . . . . . . . Escape Stasis . | . . . . . . . . . . Rewire . | . . . . . . . . . . Trap . | . . . . . . . . . . Miscellaneous . | . . . . . . . . . . Route ------- -11/Junkyard -10/Materials (discovered 4 exits: *Mat x3 / [*Min]) -10/Mines -9/Materials (discovered 6 exits: *Mat x2 / *Min x2 / *Sto x2) -9/Mines (discovered 3 exits: *Mat x2 / *Exi) -9/Exiles -8/Mines -8/Materials (discovered 3 exits: *Fac x3) -7/Factory (discovered 4 exits: *Fac / *Low x2 / Gar) -7/Garrison History --------- Turn | Location | Event 18 | -11/Junkyard | Discovered new exit (range 16) 57 | -11/Junkyard | Entered Materials 181 | -10/Materials | Discovered new exit (range 7) 293 | -10/Materials | Discovered new exit (range 5) 339 | -10/Materials | Build established: Mutant 394 | -10/Materials | Discovered new exit (range 3) 628 | -10/Materials | Discovered new exit (range 15) 715 | -10/Materials | Repaired Assault Rifle 1114 | -10/Materials | Entered Mines 1121 | -10/Mines | Received a Rocket Launcher from a helpful Derelict 1150 | -10/Mines | A weapon hastily lodged in a ceiling crevice suddenly fell to the ground 1414 | -10/Mines | Assembled infested the area 1555 | -10/Mines | Escorted by a lone wolf Derelict 1590 | -10/Mines | Learned location of Storage (-9) 1618 | -10/Mines | Discovered new exit (range 15) 1676 | -10/Mines | Core integrity fell below 50% 1677 | -10/Mines | Entered Materials 1677 | -9/Materials | Evolved 2 slots: Utility x2 1844 | -9/Materials | Lost 5 parts (1p1n1u2w) 2060 | -9/Materials | Lost 3 parts (1p1u1w) 2077 | -9/Materials | Repaired Ion Engine 2230 | -9/Materials | Discovered new exit (range 16) 2844 | -9/Materials | Discovered new exit (range 13) 2905 | -9/Materials | Discovered new exit (range 6) 2948 | -9/Materials | Core integrity fell below 50% 3022 | -9/Materials | Repaired Imp. Treads 3030 | -9/Materials | Discovered new exit (range 7) 3277 | -9/Materials | First assault squad dispatched 3432 | -9/Materials | Discovered new exit (range 7) 3474 | -9/Materials | Identified exit to Storage 3495 | -9/Materials | Discovered new exit (range 15) 3550 | -9/Materials | Identified exit to Mines 3551 | -9/Materials | Entered Mines 3698 | -9/Mines | Discovered new exit (range 13) 3730 | -9/Mines | Learned location of Zion (-7) 3731 | -9/Mines | Identified exit to Materials 3784 | -9/Mines | Discovered exit to Materials (range 9) 3840 | -9/Mines | Deemed a non-threat by the Exiles lab entrance 3840 | -9/Mines | Discovered new exit (range 5) 3844 | -9/Mines | Identified exit to Exiles 3848 | -9/Mines | Entered Exiles 3848 | -9/Exiles | Found Exiles lab abandoned 3848 | -9/Exiles | Accompanied by 2 allies 3878 | -9/Exiles | Led the pair of lost Derelicts to a safe place 4061 | -9/Exiles | Discovered new exit (range 10) 4072 | -9/Exiles | Identified exit to Mines 4073 | -9/Exiles | Entered Mines 4103 | -8/Mines | Discovered exit to Materials (range 5) 4146 | -8/Mines | Entered Materials 4146 | -8/Materials | Evolved 2 slots: Utility x2 4528 | -8/Materials | Repaired Cld. Ion Engine 4560 | -8/Materials | Repaired Imp. Treads 4705 | -8/Materials | Repaired Rocket Launcher 4866 | -8/Materials | Discovered new exit (range 5) 4872 | -8/Materials | Build established: Scavenger-Mutant 5404 | -8/Materials | Discovered new exit (range 4) 5769 | -8/Materials | Discovered new exit (range 11) 5915 | -8/Materials | Core integrity fell below 50% 6081 | -8/Materials | Lost 3 parts (2n1u) 6101 | -8/Materials | Garrison activated, responded to threat 6207 | -8/Materials | Build established: Mutant 6382 | -8/Materials | Identified exit to Factory 6384 | -8/Materials | Entered Factory 6384 | -7/Factory | Evolved 2 slots: Utility x2 6443 | -7/Factory | Lost 5 parts (1p2n1u1w) 6577 | -7/Factory | Build established: Scavenger-Mutant 6583 | -7/Factory | Identified exit to Lower Caves 7292 | -7/Factory | Build established: Mutant 7356 | -7/Factory | Lost 3 parts (1u2w) 7873 | -7/Factory | Build established: Scavenger-Mutant 7908 | -7/Factory | Discovered new exit (range 15) 8007 | -7/Factory | Identified exit to Factory 8647 | -7/Factory | Repaired Hvy. Assault Rifle 8895 | -7/Factory | Core integrity fell below 50% 8901 | -7/Factory | Garrison activated, responded to threat 8964 | -7/Factory | Identified exit to Garrison 8964 | -7/Factory | Entered Garrison 8993 | -7/Garrison | Lost 4 parts (2p1n1u) 9055 | -7/Garrison | Triggered checkpoint 9090 | -7/Garrison | Destroyed 7 combat bots 9092 | -7/Garrison | Core integrity fell below 20% 9133 | -7/Garrison | Self-destructed Last Messages --------------- 09071_ Lgt. Nuclear Core destroyed. 09073_ Cooling System destroyed. 09074_ The unstable cave ceiling collapses. 09074_ Dropped Recoil Stabilizer. 09079_ Hvy. Assault Rifle destroyed. 09080_ Acquired 37 matter. 09081_ Adv. Treads destroyed. 09081_ Critical hit (Burn: +37). 09082_ Dropped Hcp. Storage Unit. 09083_ Dropped Hcp. Matter Pod. 09084_ Dropped Imp. Terrain Scanner. 09087_ The unstable cave ceiling collapses. 09093_ Wheel destroyed. 09094_ Dropped Plasma Cannon. Garrison Door activated. 09108_ S-27 Virus destroyed. 09111_ Acquired 7 matter. 09113_ System corrupted: Component data lost. 09118_ Adv. Treads destroyed. 09118_ Adv. Weight Redist. System destroyed. Map ----- +----------------------------------------------------+ | ?????????????????????????????????????????????????? | | ?????????????????????????????????????????????????? | | ?????????????###?????????????????????????????????? | | ?????????????#""?????????????????????????????????? | | ?????????????# T?????????????????????????????????? | | ?????????????# "?????????????????????????????????? | | ?????????????# #?????????????????????????????????? | | ?????????????# #?????????????????????????????????? | | ?????????????# #???###???????????????????????????? | | ?????????????# #?? #???????????????????????????? | | ?????????????# ### ##### #???????????????????? | | ?????????????# #??????????????????? | | ?????????????# #??????????????????? | | ?????????????# ###############??????????????????? | | ###??????????# #??????????# #??????????????????? | | #??????????# #??????????# #####??????????????? | | ############ ############ # ###????????????? | | ] ! #????????????? | | =!! #????????????? | | !! #????????????? | | ############################ #????????????? | | ??????????????# #?????????### # #????????????? | | ??????????????# #?????????# #????????????? | | ??????????????# #?????????### # #????????????? | | ??????????????# ############# ### #????????????? | | ??????????????# g @ g #?# #????????????? | | ??????????????############### #?# #????????????? | | ????????????????????????????# #?# ???????????? | | ????????????????????????????# ?? ??????????? | | ????????????????????????????####? * ?????????? | | ????????????????????????????????? = ? ???????? | | ????????????????????????????????? [ ??????????? | | ????????????????????????????????? * ???????????? | | ????????????????????????????????? ???????????? | | ????????????????????????????????? * ?????????????? | | ?????????????????????????????????????????????????? | | ?????????????????????????????????????????????????? | | ?????????????????????????????????????????????????? | | ?????????????????????????????????????????????????? | | ?????????????????????????????????????????????????? | | ?????????????????????????????????????????????????? | | ?????????????????????????????????????????????????? | | ?????????????????????????????????????????????????? | | ?????????????????????????????????????????????????? | | ?????????????????????????????????????????????????? | | ?????????????????????????????????????????????????? | | ?????????????????????????????????????????????????? | | ?????????????????????????????????????????????????? | | ?????????????????????????????????????????????????? | | ?????????????????????????????????????????????????? | +----------------------------------------------------+ Best States ------------- Heat Dissipation 70 Coolant Potential 65 Energy Generation 15 Energy Capacity 280 Matter Stores 300 Matter Capacity 300 Sight Range 18 Terrain Scan Range 16 Terrain Scan Density 210 Additional Mass Support 9 Armor Coverage 375 Core Shielding 20 Power Shielding 33 Weapon Shielding 66 Evasion (%) 55 Targeting Accuracy 14 Recoil Reduction 2 Offensive Hacking 10 Item Schematics ----------------- Hvy. Assault Rifle | -9/Materials | Scanalyzed Adv. Beam Cannon | -9/Materials | Scanalyzed Cld. Ion Engine | -8/Materials | Scanalyzed Imp. Treads | -8/Materials | Scanalyzed Assault Rifle | -8/Materials | Scanalyzed Robot Schematics ------------------ None Fabricated ------------ Nothing Alien Tech Used ----------------- None Achievements -------------- None Challenges ------------ None Game ------ Seed SuspensionHardlightGuard Manual? 0 Play Time 01:40:14 Cumulative 778.1 hours Start 2023.06.20 @ 17:08:28 End 2023.06.20 @ 21:29:45 Sessions 1 Manual Loads 0 Difficulty Rogue Special Mode None Game No. 234 Rogue 198 Adventurer 36 Explorer 0 Win Type - Total 16 Types 16/0/0/0/0/0/0/0/0 Lore% 57 Gallery% 63 Achievement% 50 Wizard Run 0 Options --------- ASCII 0 Keyboard 1 Movement Vi Keybinds 0 Fullscreen 1 Font 18/Terminus Map View 76x50 Tactical HUD 1 Map Filters NONE Filters NONE Steam 0 RUN: ed9c6f3d-a4bc-4427-a89d-032e46574b8d